[Event "German Rapid Championship 2022"]
[Site "Goettingen"]
[Date "2022.09.24"]
[Round "1.4"]
[White "Poetsch, Hagen"]
[Black "Karsay, Pascal"]
[Result "1-0"]
[ECO "C54"]
[WhiteElo "2491"]
[BlackElo "2269"]
[Annotator "TA"]
[PlyCount "95"]
[EventDate "2022.09.24"]
[EventType "swiss"]
[EventCountry "GER"]
[SourceTitle "playchess.com"]
[Source "ChessBase"]
[SourceQuality "1"]
[TimeControl "900+10"]

{[%evp 15,95,0,0,0,0,0,0,0,13,0,0,0,0,0,0,0,106,0,0,0,156,0,45,0,0,0,136,139,137,140,132,132,141,135,131,139,139,150,159,166,163,186,170,162,175,166,185,164,182,106,107,104,178,160,168,149,159,131,120,118,116,88,131,131,140,129,181,173,383,311,352,260,276,288,1129,1094,1347,1372,29987,29988,29988,29989]} 1. e4 {[%emt 0:00:03]} e5 {[%emt 0:00:01]} 2. Nf3 {[%emt 0:00:02]} Nc6 {[%emt 0:00:02]} 3. Bc4 {[%emt 0:00:03]} Bc5 {[%emt 0:00:02]} 4. c3 {[%emt 0:00:03]} Nf6 {[%emt 0:00:03]} 5. d4 {[%emt 0:00:01]} exd4 {[%emt 0:00:03]} 6. e5 {[%emt 0:00:02]} d5 {[%emt 0:00:04]} 7. Bb5 {[%emt 0:00:02]} Ne4 {[%emt 0:00:02]} 8. cxd4 {[%emt 0:00:02]} Bb6 {[%emt 0:00:02]} 9. Nc3 {[%emt 0:00:02] C54: Giuoco Piano: 4 c3 Nf6, main lines with 5 d4 and 5 d3.} Bg4 {[%emt 0:00:18]} 10. Be3 {[%emt 0:00:12]} O-O {[%emt 0:00:05]} 11. h3 {[%emt 0:00:18] The position is equal.} Bh5 {[%emt 0:00:09]} 12. Qc2 {[%emt 0:00:03]} Ba5 {[%emt 0:01:49] 12...Nxc3 is becoming the main line.} 13. O-O {[%emt 0:01:58]} Bxf3 {[%emt 0:01:43]} 14. gxf3 {[%emt 0:00:03]} Nxd4 {[%emt 0:00:02]} 15. Bxd4 {[%emt 0:00:04]} Bxc3 {[%emt 0:00:06]} (15... Qg5+ $1 $11 {remains equal.} 16. Kh1 Bxc3 17. Bxc3 (17. bxc3 Qf5 $11) 17... Qf5) 16. bxc3 {[%emt 0:01:35]} (16. Be3 $1 $16) 16... Qg5+ $1 $11 {[%emt 0:00:02]} 17. Kh1 {[%emt 0:00:09]} Qh5 $2 {[%emt 0:00:35]} (17... Qf5 $1 $11 18. Qd1 (18. fxe4 Qxh3+ 19. Kg1 Qg4+ 20. Kh2 Qh4+ 21. Kg2 Qg4+ 22. Kh2 Qh4+ 23. Kg2 Qg4+ 24. Kh2 $11) 18... Qxh3+ 19. Kg1 Ng3 20. fxg3 Qxg3+ 21. Kh1 Qh3+ 22. Kg1 Qg3+ 23. Kh1 Qh3+ 24. Kg1 Qg3+) 18. Rfc1 $2 {[%emt 0:02:26]} (18. fxe4 Qxh3+ 19. Kg1 Qg4+ 20. Kh2 (20. Kh1 Qh4+ 21. Kg2 Qg4+ 22. Kh2 Qh4+ 23. Kg2 Qg4+ 24. Kh2 Qh4+ 25. Kg2 $11) 20... Qh4+ 21. Kg2 Qg4+ 22. Kh2 (22. Kh1 Qh4+ 23. Kg2 Qg4+ 24. Kh2 Qh4+ 25. Kg2 $11) 22... Qh4+ 23. Kg2 Qg4+ 24. Kh2 $11 (24. Kh1 Qh4+ 25. Kg2 $11)) (18. Bd7 $16 Qxf3+ 19. Kg1) 18... Qxh3+ {[%emt 0:02:22]} (18... Qxf3+ 19. Kg1 $14) 19. Kg1 {[%emt 0:00:01][%cal Bh1g1,Bg1g2,Bg2f1][%mdl 32]} Ng5 {[%emt 0:00:25][%cal Rg5f3]} 20. Be2 {[%emt 0:00:04] Strongly threatening f4.} Qh4 {[%emt 0:02:18]} (20... Nxf3+ $11 21. Bxf3 Qxf3) 21. Be3 $16 {[%emt 0:01:24] Qd2 is the strong threat.} Nh3+ {[%emt 0:00:03]} 22. Kg2 {[%emt 0:00:09]} Nf4+ {[%emt 0:00:58]} 23. Bxf4 {[%emt 0:00:02]} Qxf4 {[%emt 0:00:01]} 24. Rh1 {[%emt 0:00:11][%csl Gh1][%cal Rc2h7] [#]} Qg5+ $146 {[%emt 0:00:26]} ({Predecessor:} 24... g6 25. Rh3 Qg5+ 26. Rg3 Qxe5 27. Rh1 Rae8 28. Bd3 Re6 29. Qd2 Rfe8 30. f4 Qg7 {1-0 (46) Erdos,V (2615)-Harutyunian,T (2552) Abu Dhabi 2021}) 25. Kf1 {[%emt 0:00:12][%csl Gh1][%cal Rc2h7]} h6 {[%emt 0:00:34]} 26. Rb1 {[%emt 0:02:04]} Rfe8 {[%emt 0:00:57]} 27. Rxb7 {[%emt 0:01:22]} Rxe5 {[%emt 0:00:09]} 28. Rb4 {[%emt 0:00:27] And now f4 would win.} (28. Rxc7 Rae8 29. Rxa7 (29. f4 $2 Qxf4 30. Rc8 Rxc8 $19) 29... Qf6 $17) 28... Qf6 {[%emt 0:02:00]} 29. f4 {[%emt 0:00:42]} Re6 {[%emt 0:00:42]} 30. Bg4 {[%emt 0:00:31]} Rc6 {[%emt 0:00:05]} 31. Rh3 {[%emt 0:00:40]} a5 {[%emt 0:00:27]} 32. Rb3 {[%emt 0:01:01]} ({White should play} 32. Ra4 $18) 32... Qxf4 {[%emt 0:00:11]} 33. Qf5 {[%emt 0:00:15]} Qc1+ {[%emt 0:00:10]} (33... Qxf5 $16 {was worth a try.} 34. Bxf5 Rc5) 34. Kg2 $18 {[%emt 0:00:03]} Rg6 {[%emt 0:00:21]} 35. Rg3 {[%emt 0:00:25]} Rg5 {[%emt 0:00:24]} 36. Qb1 {[%emt 0:01:21] Chess con chili.} Qf4 {[%emt 0:00:13]} 37. Bf3 {[%emt 0:00:36]} c6 {[%emt 0:00:47]} 38. Qe1 {[%emt 0:00:25] Prevents Qd2.} Re5 {[%emt 0:00:37]} 39. Qd1 {[%emt 0:00:05]} Rae8 {[%emt 0:00:50]} 40. Qd4 {[%emt 0:00:09]} Qf6 {[%emt 0:00:12]} (40... Qxd4 $16 {might work better.} 41. cxd4 R5e6) 41. Rb6 {[%emt 0:00:18][%cal Of3d5] Threatens to win with Bxd5!} h5 $2 {[%emt 0:00:21] [#]} (41... R5e6 42. Ra6 Qxd4 43. cxd4 Rb8 44. Rxa5 Rf6) 42. Bxh5 $1 {[%emt 0:00:23][%mdl 512]} Qh6 {[%emt 0:00:04]} (42... Rf5 43. Bf3) 43. Bf3 {[%emt 0:00:15]} Re1 {[%emt 0:00:06][%csl Ge1][%cal Rh6h1] [#]} 44. Rh3 {[%emt 0:00:33] Prevents Qh1+.} ({Worse is} 44. Bh5 g6 45. Rh3 gxh5 46. Rg3+ Kf8 $11) 44... Rg1+ $2 {[%emt 0:00:02] [#]} (44... Qg6+ 45. Qg4 (45. Bg4 $2 R1e4 $19) 45... R1e6 46. Qxg6 Rxg6+ 47. Rg3 Rf6) 45. Kh2 $1 {[%emt 0:00:16]} ({Not} 45. Kxg1 Qxh3 46. Qd1 Re6 $14) 45... Qc1 {[%emt 0:00:33]} 46. Qh4 {[%emt 0:00:11][%csl Gh3][%cal Rh4h8]} Kf8 {[%emt 0:00:09]} 47. Qh8+ {[%emt 0:00:14]} Ke7 {[%emt 0:00:01]} 48. Rb7+ {[%emt 0:00:01] Weighted Error Value: White=0.20 (precise) /Black=0.33} 1-0

[Event "German Rapid Championship 2022"]
[Site "Goettingen"]
[Date "2022.09.24"]
[Round "1.5"]
[White "Brustkern, Juergen"]
[Black "Lubbe, Nikolas"]
[Result "0-1"]
[ECO "A45"]
[WhiteElo "2145"]
[BlackElo "2479"]
[Annotator "TA"]
[PlyCount "42"]
[EventDate "2022.09.24"]
[EventType "swiss"]
[EventCountry "GER"]
[SourceTitle "playchess.com"]
[Source "ChessBase"]
[SourceQuality "1"]
[TimeControl "900+10"]

{[%evp 9,42,63,65,59,71,-53,-34,-43,-19,-60,-27,-88,-83,-84,-104,-131,-135,-131,-136,-221,-158,-157,-166,-176,-114,-197,-211,-227,-171,-215,-200,-493,-478,-869,-815]} 1. d4 {[%emt 0:00:04]} Nf6 {[%emt 0:00:09]} 2. Bg5 {[%emt 0:00:02]} c5 {[%emt 0:00:09]} 3. d5 {[%emt 0:00:02]} d6 {[%emt 0:01:25]} 4. Nc3 {[%emt 0:00:31]} Nbd7 {[%emt 0:00:45]} 5. e4 {[%emt 0:00:26]} a6 {[%emt 0:00:22]} 6. a4 $1 {[%emt 0:00:11] Prevents b5. A45: Trompowsky Attack.} g6 {[%emt 0:00:27]} 7. f4 {[%emt 0:00:32]} ({White should play} 7. Nf3 $16) 7... Bg7 {[%emt 0:00:36]} (7... Qa5 $5 {[%cal Rf6e4]} 8. Qd3 Qb4 $15) 8. Nf3 {[%emt 0:00:04] [#] Black is slightly better.} h6 $146 {[%emt 0:01:25]} (8... Qa5 $5 {[%cal Rf6e4]} 9. Qd2 Qb4 $15) ({Predecessor:} 8... Qa5 9. Nd2 h6 10. Bh4 Nh5 11. Qf3 Nxf4 12. Qxf4 g5 13. Qg3 Bf6 14. Nc4 Qb4 {0-1 (36) Sell,A (2250)-Pueschel,W (2185) Germany 2007}) 9. Bh4 {[%emt 0:00:03]} Nh5 {[%emt 0:00:42]} (9... Qa5 $5 {[%cal Rf6e4]} 10. Nd2 Nh5 $15) 10. Qd2 {[%emt 0:01:41]} (10. g3 $11 {keeps the balance.}) 10... Qa5 {[%emt 0:01:03]} 11. Ra3 {[%emt 0:00:35]} Qb4 {[%emt 0:01:37]} (11... Nxf4 {with more complications.} 12. Kd1 Nh5 13. h3 g5) 12. Rb3 {[%emt 0:01:29]} Bxc3 {[%emt 0:00:22]} 13. Rxc3 {[%emt 0:00:08]} Qxb2 {[%emt 0:00:21][%cal Oh5f4]} ({Weaker is} 13... Qxa4 14. Ra3 Qb4 15. Qxb4 cxb4 16. Ra4 $15) 14. g3 {[%emt 0:00:59]} (14. Kf2 $17) 14... g5 {[%emt 0:01:32]} 15. fxg5 {[%emt 0:00:29]} hxg5 {[%emt 0:00:03]} 16. Nxg5 {[%emt 0:00:31]} Ne5 {[%emt 0:00:52]} (16... Nhf6 $19 17. Rb3 Qa1+ 18. Qd1 Qxa4) 17. Be2 {[%emt 0:01:15]} (17. Nf3 $17 {might work better.} Ng6 18. Bg2) 17... Qa1+ $19 {[%emt 0:01:17]} 18. Bd1 {[%emt 0:00:02]} Qxa4 {[%emt 0:00:25]} 19. O-O {[%emt 0:00:20] [#]} Nf6 $1 {[%emt 0:00:34][%cal Bh5f6,Bf6e4,Be4c3][%mdl 32]} 20. Nf3 $2 {[%emt 0:02:11]} (20. Re1 {is a better defense.}) 20... Nxe4 {[%emt 0:00:35] Pair of Knights!} 21. Qf4 {[%emt 0:00:08]} (21. Qe3 $142 Nxc3 22. Qxc3) 21... Nxc3 {[%emt 0:00:20] Weighted Error Value: White=1.02/Black=0.21 (precise)} 0-1

[Event "German Rapid Championship 2022"]
[Site "Goettingen"]
[Date "2022.09.24"]
[Round "1.6"]
[White "Heider, Martin"]
[Black "Woelk, Tom-Frederic"]
[Result "1/2-1/2"]
[ECO "A05"]
[WhiteElo "2393"]
[BlackElo "2289"]
[Annotator "TA"]
[PlyCount "94"]
[EventDate "2022.09.24"]
[EventType "swiss"]
[EventCountry "GER"]
[SourceTitle "playchess.com"]
[Source "ChessBase"]
[SourceQuality "1"]
[TimeControl "900+10"]

{[%evp 9,94,10,14,15,20,0,30,34,34,28,20,-25,-4,-26,-14,-17,-3,-18,44,48,47,35,188,178,210,205,233,206,224,0,0,0,0,0,18,0,64,20,43,18,245,195,189,174,170,141,126,118,120,120,125,117,92,31,47,35,43,16,21,17,14,19,16,14,8,8,16,8,12,8,43,39,130,107,252,251,246,155,102,0,29,0,0,0,0,0,0]} 1. Nf3 {[%emt 0:00:03]} Nf6 {[%emt 0:00:07]} 2. b3 {[%emt 0:00:01]} d5 {[%emt 0:00:38]} 3. Bb2 {[%emt 0:00:06]} Bg4 {[%emt 0:00:08]} 4. e3 {[%emt 0:00:02]} Nbd7 {[%emt 0:00:05]} 5. h3 {[%emt 0:00:03]} Bh5 {[%emt 0:00:08]} 6. d3 {[%emt 0:00:31] A06: Réti Opening: 1 Nf3 d5.} e6 {[%emt 0:00:17] 6...h6 is vanishing.} 7. Nbd2 {[%emt 0:00:06]} Bd6 {[%emt 0:00:07]} 8. g4 {[%emt 0:00:21] White has an edge.} Bg6 {[%emt 0:00:02]} 9. g5 {[%emt 0:00:24]} Nh5 {[%emt 0:01:12]} 10. Be2 {[%emt 0:00:33]} h6 {[%emt 0:00:35]} 11. h4 {[%emt 0:01:19]} Qe7 {[%emt 0:02:20]} 12. c4 {[%emt 0:02:29]} O-O-O {[%emt 0:02:07] next ...hxg5 is good for Black.} 13. Qc2 {[%emt 0:00:44] [#]} dxc4 $146 {[%emt 0:01:28]} (13... Kb8 $11) ({Predecessor:} 13... Kb8 14. O-O-O c6 15. Rdg1 e5 16. Qd1 Bf5 17. Ne1 g6 18. e4 Be6 19. Bxh5 gxh5 20. Qxh5 hxg5 21. Qxg5 {0-1 (37) Zilka,S (2437)-Korobov,A (2530) Pardubice 2007}) 14. Nxc4 $14 {[%emt 0:01:58]} Bb4+ {[%emt 0:00:10]} 15. Bc3 {[%emt 0:00:40]} Nc5 $2 {[%emt 0:02:22] [#]} 16. Nfe5 $1 $18 {[%emt 0:01:47]} Bxc3+ {[%emt 0:00:12]} 17. Qxc3 {[%emt 0:00:01]} hxg5 {[%emt 0:00:02]} 18. Nxg6 {[%emt 0:00:38]} fxg6 {[%emt 0:00:02]} 19. hxg5 {[%emt 0:00:45]} (19. Ne5 $18 {Rc1 is the strong threat.} Nf6 20. Rc1 (20. Nxg6 Qd6 $18)) 19... Qxg5 $11 {[%emt 0:01:08]} 20. O-O-O {[%emt 0:00:18]} Qf6 {[%emt 0:00:25]} 21. Qe5 {[%emt 0:01:59]} Qe7 {[%emt 0:01:32]} (21... Qxf2 $2 22. Qxc5 Kb8 23. Bxh5 Rxh5 24. Rxh5 gxh5 25. Qg5 $18 (25. Qxh5 Qxa2 26. Qg5 Kc8 $18)) 22. Rhg1 {[%emt 0:01:06][%mdl 1024] White has compensation.} Rd5 {[%emt 0:00:13]} ({Black should try} 22... Rh6 $11) 23. Qc3 {[%emt 0:00:11] White is more active.} Rf5 {[%emt 0:01:39]} 24. f4 {[%emt 0:00:19]} (24. Ne5 $5 {[%cal Re5g6]} Rh6 25. f4 $14 (25. Nxg6 Qd6 $14) (25. Rxg6 Nf6 $14)) 24... Rf6 $2 {[%emt 0:00:43]} (24... Nf6 $11) 25. Ne5 {[%emt 0:00:07]} Nd7 {[%emt 0:00:31]} 26. Nxg6 {[%emt 0:00:11]} Qa3+ {[%emt 0:00:01]} 27. Kb1 {[%emt 0:00:20]} Rh6 {[%emt 0:00:04] [#]} 28. Rc1 $1 {[%emt 0:00:21][%csl Gc1][%cal Rc3c7]} c6 {[%emt 0:00:01]} 29. Ne5 {[%emt 0:00:27]} Nxe5 {[%emt 0:00:09]} 30. Qxe5 {[%emt 0:00:18] And now Rg5 would win.} Rf5 {[%emt 0:00:03]} 31. Qb2 {[%emt 0:00:17]} (31. Qc3 $16) 31... Qxb2+ $14 {[%emt 0:00:19]} 32. Kxb2 {[%emt 0:00:01]} Rf7 {[%emt 0:00:01]} 33. Rh1 {[%emt 0:00:41]} Ng3 {[%emt 0:00:18][%csl LRe2,LRh1]} 34. Rxh6 {[%emt 0:00:02]} gxh6 $11 {[%emt 0:00:01][%mdl 4096] Endgame KRB-KRN} 35. Bg4 {[%emt 0:00:10]} Kd7 {[%emt 0:00:06]} 36. Rg1 {[%emt 0:00:10]} Nf5 {[%emt 0:00:03]} 37. Bxf5 {[%emt 0:00:14]} exf5 {[%emt 0:00:02] KR-KR} 38. Rh1 {[%emt 0:00:11]} Re7 {[%emt 0:00:01]} 39. Rh3 {[%emt 0:00:08]} Re6 {[%emt 0:00:05]} 40. Kc3 {[%emt 0:00:04]} Rg6 {[%emt 0:00:04]} ({Black should play} 40... Ke7 $14) 41. Kd4 $16 {[%emt 0:00:11] Strongly threatening Ke5.} Ke6 {[%emt 0:00:09] [#]} (41... Rd6+ $16 {was worth a try.} 42. Ke5 Rd5+ 43. Kf6 Rxd3) 42. e4 $1 $18 {[%emt 0:00:05]} Rf6 {[%emt 0:00:34]} 43. Ke3 {[%emt 0:00:13]} Kf7 {[%emt 0:00:33]} 44. Kd4 {[%emt 0:00:10]} (44. e5 $16 Re6 45. b4) 44... fxe4 {[%emt 0:00:04]} 45. Kxe4 {[%emt 0:00:09]} Re6+ {[%emt 0:00:05] The position is equal.} 46. Kf5 {[%emt 0:00:12]} Rf6+ {[%emt 0:00:03]} 47. Ke5 {[%emt 0:00:05]} Re6+ {[%emt 0:00:00] Weighted Error Value: White=0.23 (precise) /Black=0.32} 1/2-1/2

[Event "German Rapid Championship 2022"]
[Site "Goettingen"]
[Date "2022.09.24"]
[Round "1.7"]
[White "Laux, Dominik"]
[Black "Krastev, Alexander"]
[Result "0-1"]
[ECO "A45"]
[WhiteElo "2248"]
[BlackElo "2431"]
[Annotator "TA"]
[PlyCount "72"]
[EventDate "2022.09.24"]
[EventType "swiss"]
[EventCountry "GER"]
[SourceTitle "playchess.com"]
[Source "ChessBase"]
[SourceQuality "1"]
[TimeControl "900+10"]

{[%evp 9,72,10,11,0,3,8,8,0,23,33,28,40,45,24,27,-69,-19,-73,-60,-67,52,-117,-113,-137,-134,-146,-148,-131,-125,-135,-141,-177,-136,-154,-156,-155,-158,-151,-147,-221,-212,-252,-223,-268,-250,-250,-235,-368,-360,-372,-352,-339,-335,-437,-436,-402,-412,-498,-490,-458,-442,-656,-618,-577,-519]} 1. d4 {[%emt 0:00:02]} Nf6 {[%emt 0:00:01]} 2. Bg5 {[%emt 0:00:09]} c5 {[%emt 0:00:09]} 3. Bxf6 {[%emt 0:00:05]} gxf6 {[%emt 0:00:02]} 4. d5 {[%emt 0:00:09]} Bg7 {[%emt 0:00:37]} 5. c4 {[%emt 0:00:02]} f5 {[%emt 0:01:17]} 6. Qc2 {[%emt 0:00:18] A45: Trompowsky Attack.} b5 {[%emt 0:00:41]} 7. cxb5 {[%emt 0:00:31]} a6 {[%emt 0:00:10]} 8. e3 {[%emt 0:00:47] The position is equal.} O-O {[%emt 0:00:56]} 9. Nc3 {[%emt 0:00:22]} (9. Qxc5 $2 Bxb2 10. Nd2 Bxa1 $19) (9. Qxf5 d6 10. Qc2 (10. Qg5 axb5 11. Nc3 h6 $15) 10... axb5 $15) 9... Qa5 {[%emt 0:01:41]} 10. a4 {[%emt 0:01:55]} e6 {[%emt 0:03:18] [#]} 11. Rd1 $146 {[%emt 0:02:16] Strongly threatening Nf3.} ({Predecessor:} 11. d6 axb5 12. Bxb5 Ba6 13. Rb1 Nc6 14. Nge2 Bxb5 15. axb5 Na7 16. O-O Nxb5 17. Qd3 {0-1 (48) Stiller,J (2125)-Ewald,A (2125) Bayern 2001}) 11... Bb7 {[%emt 0:02:04]} 12. Bc4 {[%emt 0:01:21]} (12. dxe6 $11 fxe6 13. Nf3) 12... axb5 {[%emt 0:00:33]} (12... Qb4 $15 13. Qb3 Qxb3 14. Bxb3 Bxc3+ 15. bxc3 axb5 16. axb5 Ra3) 13. axb5 {[%emt 0:00:08]} (13. Bxb5 $11 Bxd5 14. Nf3) 13... Qb4 $17 {[%emt 0:00:31]} 14. Qb3 {[%emt 0:01:19]} Ra4 {[%emt 0:00:01]} 15. Qxb4 $2 {[%emt 0:01:44]} (15. Nge2 $14 Qxb3 16. Bxb3) 15... Rxb4 {[%emt 0:00:01][%cal Ba4b4,Bb4b5,Bb5a5][%mdl 32] White is now going downhill.} 16. Bd3 {[%emt 0:00:20] [#]} (16. dxe6 $2 Rxc4 17. exd7 Rd8 $19) 16... c4 $1 $36 {[%emt 0:02:14][%mdl 2048] Keeping White busy. Black is more active.} ({Weaker is} 16... Rxb2 17. Nge2 $17) 17. Bb1 {[%emt 0:01:32]} Bxc3+ {[%emt 0:00:41][%mdl 64] Remove Defender} ({Worse is} 17... Rxb2 18. Nge2 $17) 18. bxc3 {[%emt 0:00:05]} Rxb5 {[%emt 0:00:01]} 19. Nf3 {[%emt 0:00:47]} Bxd5 {[%emt 0:00:09]} 20. Nd4 {[%emt 0:00:19]} Ra5 {[%emt 0:00:24]} ({Much less strong is} 20... Bxg2 21. Rg1 Rb2 22. Rxg2+ Kh8 23. Kf1 $16) 21. O-O {[%emt 0:00:03]} Nc6 {[%emt 0:00:17]} 22. f3 {[%emt 0:00:15]} Ne5 {[%emt 0:00:39]} 23. e4 {[%emt 0:00:37]} fxe4 {[%emt 0:00:02]} 24. fxe4 {[%emt 0:00:34]} (24. Bxe4 $17 Bxe4 25. fxe4) 24... Bc6 $19 {[%emt 0:00:20]} 25. Rd2 {[%emt 0:01:42]} Rb8 {[%emt 0:00:09]} 26. Nf3 {[%emt 0:00:09]} Nxf3+ {[%emt 0:00:31]} 27. gxf3 {[%emt 0:00:03]} Rb3 {[%emt 0:00:27]} 28. f4 {[%emt 0:00:30]} (28. Rc2 {was worth a try.}) 28... Rxc3 {[%emt 0:00:08]} 29. e5 {[%emt 0:00:03]} h6 {[%emt 0:00:32]} 30. Re1 {[%emt 0:00:28]} Rf3 {[%emt 0:00:20]} 31. Be4 {[%emt 0:00:34]} Rxf4 32. Bxc6 {[%emt 0:00:03]} dxc6 {[%emt 0:00:13]} 33. Rd8+ {[%emt 0:00:30]} Kg7 {[%emt 0:00:12] Black is clearly winning.} 34. Kh1 {[%emt 0:00:02]} Rf5 {[%emt 0:00:07]} 35. h4 {[%emt 0:00:11]} (35. Rd4 $142) 35... Raxe5 {[%emt 0:00:09]} 36. Rg1+ {[%emt 0:00:01]} Kf6 {Weighted Error Value: White=0.40/Black=0.13 (very precise)} 0-1

[Event "German Rapid Championship 2022"]
[Site "Goettingen"]
[Date "2022.09.24"]
[Round "1.8"]
[White "Feuerstack, Aljoscha"]
[Black "Hagner, Bennet"]
[Result "1-0"]
[ECO "C77"]
[WhiteElo "2464"]
[BlackElo "2253"]
[Annotator "TA"]
[PlyCount "61"]
[EventDate "2022.09.24"]
[EventType "swiss"]
[EventCountry "GER"]
[SourceTitle "playchess.com"]
[Source "ChessBase"]
[SourceQuality "1"]
[TimeControl "900+10"]

{[%evp 9,61,7,6,0,5,0,0,0,8,-15,-14,-32,-15,-73,-25,-65,-70,-50,-25,-15,-8,-31,0,0,0,0,189,0,0,0,0,0,43,25,21,25,18,33,40,-16,-7,-21,79,75,83,82,72,74,90,75,29989,29990,29986,2617]} 1. e4 {[%emt 0:00:05]} e5 {[%emt 0:00:01]} 2. Nf3 {[%emt 0:00:03]} Nc6 {[%emt 0:00:01]} 3. Bb5 {[%emt 0:00:02]} a6 {[%emt 0:00:02]} 4. Ba4 {[%emt 0:00:02]} Nf6 {[%emt 0:00:02]} 5. Nc3 {[%emt 0:00:03]} Bc5 {[%emt 0:01:12]} (5... b5 $5 6. Bb3 $8 Be7 $11) 6. Bxc6 {[%emt 0:00:24] C77: Ruy Lopez: 3...a6 4 Ba4 Nf6, unusual lines.} dxc6 {[%emt 0:00:07]} 7. d3 {[%emt 0:00:03]} O-O {[%emt 0:00:35] [#]} 8. Bg5 $146 {[%emt 0:03:22] The position is equal.} ({Predecessor:} 8. Qe2 Re8 9. h3 Nd7 10. Nd1 Nf8 11. Ne3 {½-½ (11) Rapport,R (2675)-Ding,L (2777) Tbilisi 2017}) 8... h6 {[%emt 0:00:25]} 9. Bh4 {[%emt 0:00:41]} (9. Be3 $5 {[%cal Re3c5]} Bd4 10. O-O $11) 9... Re8 {[%emt 0:01:24]} 10. Qd2 {[%emt 0:01:01]} Bg4 {[%emt 0:01:22]} 11. O-O-O {[%emt 0:01:36]} (11. Qd1 $11) 11... Qd6 {[%emt 0:02:56]} ({Black should try} 11... Bb4 $1 $17) 12. h3 {[%emt 0:01:26]} Bxf3 {[%emt 0:00:06]} 13. gxf3 {[%emt 0:00:02]} Nh5 {[%emt 0:01:01]} 14. Ne2 {[%emt 0:01:35]} a5 {[%emt 0:01:29]} 15. Rhg1 {[%emt 0:01:29]} Kh7 {[%emt 0:02:40]} 16. f4 {[%emt 0:01:26]} exf4 {[%emt 0:01:02]} 17. d4 {[%emt 0:00:20] Threatens to win with Qd3.} f3 $2 {[%emt 0:01:10]} (17... Bb6 $11 {and Black has nothing to worry.}) 18. e5 $2 {[%emt 0:01:36]} (18. Ng3 $1 $18 {[%cal Rg3h5]} Bxd4 19. Nxh5 (19. Qxd4 Qxd4 20. Rxd4 Nf4 $16) 19... Rxe4 20. Rg4 Rxg4 21. hxg4) 18... Qe6 $11 {[%emt 0:02:10]} 19. Qd3+ {[%emt 0:00:39]} g6 {[%emt 0:00:01]} 20. Qxf3 {[%emt 0:00:23]} Bb4 {[%emt 0:00:22]} 21. a3 {[%emt 0:01:03]} Be7 {[%emt 0:00:14]} 22. Bxe7 {[%emt 0:00:06]} Rxe7 {[%emt 0:00:02]} 23. Nc3 {[%emt 0:00:22]} Rd8 {[%emt 0:00:18]} 24. Kb1 {[%emt 0:00:40]} (24. Ne4 $14) 24... Red7 {[%emt 0:00:07]} 25. Qe3 {[%emt 0:00:19]} Qc4 {[%emt 0:00:12]} (25... Ng7 $11 {remains equal.}) 26. Rg4 {[%emt 0:00:13] Ne4 is the strong threat.} f5 {[%emt 0:00:17] [#] Inhibits Ne4.} 27. exf6 $1 {[%emt 0:00:10]} Nxf6 {[%emt 0:00:01] [#]} 28. Rh4 $36 {[%emt 0:00:01][%mdl 2048] Black is under strong pressure.} h5 {[%emt 0:00:04]} 29. Rg1 {[%emt 0:00:23] aiming for Ne4.} Rxd4 {[%emt 0:00:09][%mdl 8192]} (29... Re8 $16 30. Qg5 Qf7) 30. Qe7+ {[%emt 0:00:04]} Kh6 {[%emt 0:00:25]} 31. Qxf6 {[%emt 0:00:03] Weighted Error Value: White=0.19 (very precise) /Black=0.47} 1-0